bitfinex/quotes_BTCUSD_20241130
["timestamp","ask_amount","ask_price","bid_price","bid_amount"]
[1733008873802,0.0017278,96520.0,96519.0,0.29625217]
[1733008874210,0.0017278,96520.0,96519.0,0.29711607]
[1733008875047,0.0017278,96520.0,96519.0,0.30711607]
[1733008880801,0.0017278,96520.0,96519.0,0.28711607]
[1733008881071,0.0017278,96520.0,96519.0,0.13711607]
[1733008882768,0.0017278,96520.0,96519.0,0.00591607]
[1733008883551,0.0017278,96520.0,96519.0,0.00391607]
[1733008883757,0.0017278,96520.0,96519.0,0.00491607]
[1733008885392,0.0017278,96520.0,96519.0,0.00391607]
[1733008885610,0.00159808,96520.0,96519.0,0.00491607]
[1733008886740,0.00159808,96520.0,96519.0,0.00391607]
[1733008889825,0.00259808,96520.0,96519.0,0.00391607]
[1733008890231,0.00359808,96520.0,96519.0,0.00391607]
[1733008890874,0.00259808,96520.0,96519.0,0.00391607]
[1733008891556,0.00159808,96520.0,96519.0,0.00391607]
[1733008892406,0.00159808,96520.0,96519.0,0.12911607]
[1733008895278,0.00159808,96520.0,96519.0,0.13011607]
[1733008895939,0.00159808,96520.0,96519.0,0.12911607]
[1733008899318,0.00159808,96520.0,96519.0,0.00391607]
[1733008900669,0.00259808,96520.0,96519.0,0.00391607]
[1733008901104,0.00359808,96520.0,96519.0,0.00391607]
[1733008901505,0.00259808,96520.0,96519.0,0.00391607]
[1733008903544,0.00259808,96520.0,96514.0,0.11429559]
[1733008903753,0.00259808,96520.0,96519.0,0.00279833]
[1733008903969,0.00259808,96520.0,96514.0,0.11429559]
[1733008904227,0.00259808,96520.0,96519.0,0.00279833]
[1733008904466,0.00159808,96520.0,96514.0,0.11429559]
[1733008904685,0.00259808,96520.0,96519.0,0.00279833]
[1733008904900,0.00259808,96520.0,96514.0,0.11429559]
[1733008905117,0.00259808,96520.0,96519.0,0.00279833]
[1733008905333,0.00259808,96520.0,96513.0,0.03]
[1733008906064,0.00159808,96520.0,96513.0,0.03]
[1733008906515,0.00459808,96520.0,96513.0,0.03]
[1733008906751,0.00159808,96520.0,96513.0,0.03]
[1733008906993,0.00159808,96520.0,96514.0,0.00280087]
[1733008907457,0.00359808,96520.0,96513.0,0.03]
[1733008907672,0.00659808,96520.0,96513.0,0.03]
[1733008908095,0.00159808,96520.0,96513.0,0.03]
[1733008908311,0.00359808,96520.0,96514.0,0.00280215]
[1733008908524,0.00359808,96520.0,96513.0,0.03]
[1733008908769,0.00159808,96520.0,96513.0,0.03]
[1733008909225,0.00359808,96520.0,96513.0,0.0308639]
[1733008909663,0.00359808,96520.0,96514.0,0.00280215]
[1733008910108,0.00759808,96520.0,96513.0,0.0308639]
[1733008910335,0.00359808,96520.0,96513.0,0.0308639]
[1733008910564,0.00359808,96520.0,96514.0,0.00280215]
[1733008910810,0.00559808,96520.0,96513.0,0.0308639]
[1733008911055,0.00559808,96520.0,96514.0,0.00280215]
[1733008911285,0.00759808,96520.0,96514.0,0.00280215]
[1733008911479,0.00359808,96520.0,96513.0,0.0308639]
[1733008911682,0.00759808,96520.0,96513.0,0.0308639]
[1733008911914,0.00559808,96520.0,96514.0,0.00280215]
[1733008912147,0.00759808,96520.0,96513.0,0.0308639]
[1733008912586,0.00759808,96520.0,96514.0,0.00280215]
[1733008912813,0.00759808,96520.0,96513.0,0.0308639]
[1733008913251,0.00759808,96520.0,96514.0,0.00280348]
[1733008913700,0.00359808,96520.0,96513.0,0.0308639]
[1733008913913,0.00759808,96520.0,96513.0,0.0308639]
[1733008914152,0.00159808,96520.0,96514.0,0.00280348]
[1733008914406,0.00359808,96520.0,96514.0,0.00280348]
[1733008914591,0.00759808,96520.0,96513.0,0.0308639]
[1733008914871,0.00359808,96520.0,96514.0,0.00280359]
[1733008915060,0.21480908,96520.0,96514.0,0.00280359]
[1733008915207,0.21480908,96520.0,96513.0,0.0308639]
[1733008915428,0.10284521,96519.0,96513.0,0.0308639]
[1733008915834,0.207215,96518.0,96514.0,0.00280359]
[1733008916046,0.10284521,96517.0,96513.0,0.0308639]
[1733008916862,0.10284521,96517.0,96514.0,0.00280359]
[1733008917438,0.10484521,96517.0,96513.0,0.0308639]
[1733008917878,0.207219,96516.0,96513.0,0.0308639]
[1733008918097,0.10284521,96517.0,96513.0,0.0308639]
[1733008918307,0.10484521,96517.0,96513.0,0.0308639]
[1733008918542,0.10584521,96517.0,96513.0,0.0308639]
[1733008918763,0.10384521,96517.0,96513.0,0.0308639]
[1733008918976,0.10284521,96517.0,96513.0,0.0308639]
[1733008920308,0.10584521,96517.0,96513.0,0.0308639]
[1733008920998,0.001,96516.0,96514.0,0.00280549]
[1733008921230,0.001,96516.0,96513.0,0.0308639]
[1733008921449,0.10684521,96517.0,96513.0,0.0308639]
[1733008921664,0.10684521,96517.0,96514.0,0.00280549]
[1733008921878,0.10884521,96517.0,96513.0,0.0308639]
[1733008922337,0.10884521,96517.0,96514.0,0.1238]
[1733008922338,0.006,96517.0,96514.0,0.1238]
[1733008922594,0.006,96517.0,96514.0,0.00463927]
[1733008922812,0.004,96517.0,96516.0,0.1238]
[1733008923050,0.004,96517.0,96516.0,0.12843783]
[1733008923517,0.00159808,96520.0,96517.0,0.0486]
[1733008923743,0.00159808,96520.0,96518.0,0.1238]
[1733008923972,0.00159808,96520.0,96518.0,0.12660307]
[1733008924914,0.00159808,96520.0,96518.0,0.12943662]
[1733008927620,0.00159808,96520.0,96518.0,0.12760307]
[1733008928867,0.00159808,96520.0,96518.0,0.07900307]
[1733008929092,0.00159808,96520.0,96518.0,0.00380307]
[1733008930043,0.31165529,96520.0,96518.0,0.00380307]
[1733008930298,0.10284521,96519.0,96518.0,0.00280307]
[1733008930527,0.10284521,96519.0,96513.0,0.0308639]
[1733008930528,0.207217,96517.0,96513.0,0.0308639]
[1733008930752,0.10284521,96516.0,96513.0,0.0308639]
[1733008931916,0.10684521,96516.0,96513.0,0.0308639]
[1733008932592,0.10284521,96516.0,96513.0,0.0308639]
[1733008932812,0.10784521,96516.0,96513.0,0.0308639]
[1733008933457,0.005,96516.0,96513.0,0.0308639]
[1733008933683,0.005,96516.0,96514.0,0.1238]
[1733008933902,0.007,96516.0,96514.0,0.12649594]
[1733008934129,0.002,96516.0,96514.0,0.12649594]
[1733008934363,0.006,96516.0,96514.0,0.12649594]
[1733008934586,0.004,96516.0,96514.0,0.12649594]
[1733008934813,0.002,96516.0,96514.0,0.12649594]
[1733008935061,0.006,96516.0,96514.0,0.12649594]
[1733008935298,0.004,96516.0,96514.0,0.12649594]
[1733008935724,0.0017278,96517.0,96514.0,0.12649594]
[1733008936156,0.004,96516.0,96514.0,0.12649594]
[1733008936378,0.004,96516.0,96515.0,0.00183382]
[1733008936594,0.006,96516.0,96515.0,0.00269533]
[1733008937252,0.004,96516.0,96515.0,0.00269533]
[1733008937470,0.005,96516.0,96515.0,0.00269533]
[1733008937910,0.001,96516.0,96515.0,0.00269533]
[1733008938135,0.0017278,96517.0,96515.0,0.00269533]
[1733008938346,0.003,96516.0,96515.0,0.00269533]
[1733008938557,0.0017278,96517.0,96515.0,0.00269533]
[1733008938754,0.001,96516.0,96515.0,0.00269533]
[1733008938980,0.003,96516.0,96515.0,0.00269533]
[1733008939177,0.001,96516.0,96515.0,0.00269533]
[1733008940056,0.0017278,96517.0,96513.0,0.0308639]
[1733008940259,0.0017278,96517.0,96515.0,0.00269533]
[1733008940473,0.003,96516.0,96514.0,0.00269594]
[1733008940670,0.003,96516.0,96513.0,0.0308639]
[1733008940895,0.0017278,96517.0,96513.0,0.0308639]
[1733008941099,0.002,96516.0,96513.0,0.0308639]
[1733008941533,0.0027278,96517.0,96513.0,0.0308639]
[1733008941746,0.002,96516.0,96513.0,0.0308639]
[1733008942002,0.0027278,96517.0,96514.0,0.00269594]
[1733008942418,0.002,96516.0,96514.0,0.00269594]
[1733008943766,0.001,96516.0,96514.0,0.00269594]
[1733008944220,0.002,96516.0,96514.0,0.00355984]
[1733008944438,0.0017278,96516.0,96514.0,0.00355984]
[1733008944667,0.0047278,96516.0,96514.0,0.00355984]
[1733008945285,0.0017278,96516.0,96514.0,0.00355984]
[1733008945489,0.0047278,96516.0,96514.0,0.00355984]
[1733008945703,0.0027278,96516.0,96514.0,0.00355984]
[1733008947302,0.0017278,96516.0,96514.0,0.00355984]
[1733008947512,0.0047278,96516.0,96514.0,0.00355984]
[1733008947800,0.0027278,96516.0,96514.0,0.00355984]
[1733008948047,0.0037278,96516.0,96514.0,0.00355984]
[1733008948485,0.0047278,96516.0,96514.0,0.00355984]
[1733008949004,0.0017278,96516.0,96514.0,0.00355984]
[1733008949243,0.0047278,96516.0,96514.0,0.00355984]
[1733008950398,0.0037278,96516.0,96514.0,0.00355984]
[1733008950826,0.0047278,96516.0,96514.0,0.00355984]
[1733008951067,0.0027278,96516.0,96514.0,0.00355984]
[1733008951271,0.0037278,96516.0,96514.0,0.00355984]
[1733008951503,0.0047278,96516.0,96514.0,0.00355984]
[1733008951928,0.0037278,96516.0,96514.0,0.00355984]
[1733008952393,0.0047278,96516.0,96514.0,0.00355984]
[1733008952617,0.0047278,96516.0,96514.0,0.0008639]
[1733008953491,0.0047278,96516.0,96515.0,0.00269742]
[1733008954561,0.0017278,96516.0,96515.0,0.00269742]
[1733008954770,0.0027278,96516.0,96515.0,0.00269742]
[1733008954973,0.0047278,96516.0,96515.0,0.00269742]
[1733008956700,0.0047278,96516.0,96515.0,0.04839742]
[1733008957753,0.0047278,96516.0,96515.0,0.00269742]
[1733008959490,0.0047278,96516.0,96514.0,0.0008639]
[1733008959709,0.0047278,96516.0,96515.0,0.0026981]
[1733008960329,0.0037278,96516.0,96515.0,0.0026981]
[1733008960698,0.0047278,96516.0,96515.0,0.0026981]
[1733008961124,0.0037278,96516.0,96515.0,0.0026981]
[1733008961362,0.0037278,96516.0,96514.0,0.0008639]
[1733008961539,0.0047278,96516.0,96514.0,0.0008639]
[1733008961771,0.0047278,96516.0,96515.0,0.00291141]
[1733008962144,0.0027278,96516.0,96514.0,0.0008639]
[1733008963343,0.0017278,96516.0,96514.0,0.0008639]
[1733008963565,0.0027278,96516.0,96514.0,0.0008639]
[1733008963754,0.0047278,96516.0,96514.0,0.0008639]
[1733008963978,0.0047278,96516.0,96515.0,0.00292258]
[1733008964856,0.0037278,96516.0,96515.0,0.00292258]
[1733008965089,0.0017278,96516.0,96514.0,0.0008639]
[1733008965351,0.0047278,96516.0,96514.0,0.0008639]
[1733008966699,0.0017278,96516.0,96514.0,0.0008639]
[1733008967115,0.0047278,96516.0,96515.0,0.00269834]
[1733008967753,0.0047278,96516.0,96514.0,0.0008639]
[1733008967963,0.0037278,96516.0,96514.0,0.0008639]
[1733008968417,0.0027278,96516.0,96514.0,0.0008639]
[1733008969306,0.31006621,96515.0,96514.0,0.0008639]
[1733008969551,0.10284521,96515.0,96514.0,0.0008639]
[1733008971467,0.10384521,96515.0,96514.0,0.0008639]
[1733008972266,0.11084521,96515.0,96514.0,0.0008639]
[1733008972673,0.10984521,96515.0,96514.0,0.0008639]
[1733008973123,0.11384521,96515.0,96514.0,0.0008639]
[1733008975839,0.11384521,96515.0,96514.0,0.0479639]
[1733008976095,0.21384521,96515.0,96514.0,0.13365365]
[1733008986194,0.21384521,96515.0,96514.0,0.08655365]
[1733008988157,0.21384521,96515.0,96514.0,0.00405365]
[1733008988659,0.21384521,96515.0,96514.0,0.0008639]
[1733008992011,0.21557301,96515.0,96514.0,0.0008639]
[1733009000049,0.23857301,96515.0,96514.0,0.0008639]
[1733009005046,0.24990028,96515.0,96514.0,0.0008639]
[1733009009866,0.21557301,96515.0,96514.0,0.0008639]
[1733009010081,0.21557301,96515.0,96514.0,0.1236639]
[1733009010303,0.21557301,96515.0,96514.0,0.12671891]
[1733009011006,0.22674046,96515.0,96514.0,0.12671891]
[1733009012628,0.1127278,96515.0,96514.0,0.12671891]
[1733009013950,0.1087278,96515.0,96514.0,0.12671891]
[1733009014197,0.1127278,96515.0,96514.0,0.12671891]
[1733009015496,0.1087278,96515.0,96514.0,0.12671891]
[1733009015935,0.1017278,96515.0,96514.0,0.12671891]
[1733009016149,0.1027278,96515.0,96514.0,0.12671891]
[1733009016992,0.1047278,96515.0,96514.0,0.12671891]
[1733009017422,0.1097278,96515.0,96514.0,0.12671891]
[1733009018913,0.1067278,96515.0,96514.0,0.12671891]
[1733009019125,0.1017278,96515.0,96514.0,0.12671891]
[1733009019375,0.1047278,96515.0,96514.0,0.12671891]
[1733009019589,0.1097278,96515.0,96514.0,0.12671891]
[1733009019798,0.1017278,96515.0,96514.0,0.12671891]
[1733009020004,0.1047278,96515.0,96514.0,0.12671891]
[1733009020215,0.1097278,96515.0,96514.0,0.12671891]
[1733009021562,0.21257301,96515.0,96514.0,0.00391891]
[1733009022032,0.21257301,96515.0,96514.0,0.0008639]
[1733009022477,0.20457301,96515.0,96514.0,0.0008639]
[1733009022695,0.20657301,96515.0,96514.0,0.0008639]
[1733009022902,0.21157301,96515.0,96514.0,0.0008639]
[1733009024609,0.23194686,96515.0,96514.0,0.0008639]
[1733009024832,0.21157301,96515.0,96514.0,0.0008639]
[1733009038944,0.22123661,96515.0,96514.0,0.0008639]
[1733009040012,0.21157301,96515.0,96514.0,0.0008639]
[1733009045518,0.20957301,96515.0,96514.0,0.0008639]
[1733009046147,0.20857301,96515.0,96514.0,0.0008639]
[1733009047102,0.21657301,96515.0,96514.0,0.0008639]
[1733009047534,0.21657301,96515.0,96476.0,0.27939529]
[1733009047535,0.3,96477.0,96476.0,0.27939529]
[1733009047752,0.3,96477.0,96471.0,0.0002]
[1733009047753,0.00934328,96472.0,96471.0,0.0002]
[1733009047961,0.31015921,96472.0,96471.0,0.0002]
[1733009048168,0.31015921,96472.0,96471.0,0.00025958]
[1733009048376,0.10284521,96472.0,96471.0,0.00025958]
[1733009048586,0.10284521,96472.0,96471.0,0.0009163]
[1733009048803,0.10284521,96472.0,96471.0,0.00025958]
[1733009049658,0.10884521,96472.0,96471.0,0.00025958]
[1733009050075,0.11784521,96472.0,96471.0,0.00025958]
[1733009050506,0.11784521,96472.0,96471.0,5.8e-07]
[1733009051325,0.10884521,96472.0,96471.0,5.8e-07]
[1733009051461,0.11184521,96472.0,96471.0,5.8e-07]
[1733009051877,0.11684521,96472.0,96471.0,5.8e-07]
[1733009052274,0.11184521,96472.0,96471.0,5.8e-07]
[1733009052723,0.11784521,96472.0,96471.0,5.8e-07]
[1733009053752,0.26784521,96472.0,96471.0,5.8e-07]
[1733009055283,0.207357,96452.0,96447.0,0.00065672]
[1733009055501,0.30987366,96452.0,96451.0,0.30379471]
[1733009056774,0.31087366,96452.0,96451.0,0.30379471]
[1733009061336,0.31087366,96452.0,96451.0,0.30465921]
[1733009061774,0.31260266,96452.0,96451.0,0.30465921]
[1733009063495,0.31160266,96452.0,96451.0,0.30465921]
[1733009063699,0.31260266,96452.0,96451.0,0.30465921]
[1733009070755,0.10557421,96452.0,96451.0,0.30465921]
[1733009071544,0.10525099,96452.0,96451.0,0.30465921]
[1733009073099,0.10525099,96452.0,96451.0,0.43085921]
[1733009077421,0.10525099,96452.0,96451.0,0.38305921]
[1733009090233,0.10525099,96452.0,96451.0,0.30465921]
[1733009091577,0.10492777,96452.0,96451.0,0.30465921]
[1733009093553,0.10479828,96452.0,96451.0,0.30465921]
[1733009105496,0.10479828,96452.0,96451.0,0.35335921]
[1733009107331,0.10479828,96452.0,96451.0,0.43475921]
[1733009110637,0.10479828,96452.0,96451.0,0.30465921]
[1733009115411,0.10479828,96452.0,96451.0,0.43475921]
[1733009131922,0.002729,96452.0,96451.0,0.43541593]
[1733009136363,0.13176102,96452.0,96451.0,0.30465921]
[1733009136610,0.10557421,96452.0,96451.0,0.30465921]
[1733009137601,0.12622171,96452.0,96451.0,0.30465921]
[1733009141713,0.13726743,96452.0,96451.0,0.30465921]
[1733009142167,0.16817691,96452.0,96451.0,0.30465921]
[1733009142652,0.31817691,96452.0,96451.0,0.30465921]
[1733009143311,0.31717691,96452.0,96451.0,0.30465921]
[1733009143537,0.32417691,96452.0,96451.0,0.30465921]
[1733009144370,0.32717691,96452.0,96451.0,0.30465921]
[1733009144809,0.3009901,96452.0,96451.0,0.30465921]
[1733009147245,0.29626743,96452.0,96451.0,0.30465921]
[1733009149858,0.29626743,96452.0,96451.0,0.38385921]
[1733009151015,0.27561993,96452.0,96451.0,0.38385921]
[1733009152179,0.27561993,96452.0,96451.0,0.43005921]
[1733009155643,0.27561993,96452.0,96451.0,0.30465921]
[1733009161945,0.27561993,96452.0,96451.0,0.35335921]
[1733009162627,0.27561993,96452.0,96451.0,0.43645921]
[1733009165482,0.27561993,96452.0,96451.0,0.38775921]
[1733009166797,0.28528097,96452.0,96451.0,0.30465921]
[1733009167697,0.31146778,96452.0,96451.0,0.30465921]
[1733009168585,0.28528097,96452.0,96451.0,0.30465921]
[1733009170750,0.28528097,96452.0,96451.0,0.43615921]
[1733009171212,0.28528097,96452.0,96451.0,0.38775921]
[1733009177327,0.27561993,96452.0,96451.0,0.38775921]
[1733009177677,0.28529216,96452.0,96451.0,0.38775921]
[1733009178953,0.28529216,96452.0,96451.0,0.30465921]
[1733009179199,0.27561993,96452.0,96451.0,0.30465921]
[1733009179424,0.28529259,96452.0,96451.0,0.30465921]
[1733009179657,0.28529259,96452.0,96451.0,0.38775921]
[1733009181804,0.28529259,96452.0,96451.0,0.30465921]
[1733009184286,0.27561993,96452.0,96451.0,0.30465921]
[1733009185157,0.27561993,96452.0,96451.0,0.35045921]
[1733009185827,0.11457421,96452.0,96451.0,0.42755921]
[1733009206387,0.11457421,96452.0,96451.0,0.30465921]
[1733009224692,0.11457421,96452.0,96451.0,0.43025921]
[1733009228991,0.11457421,96452.0,96451.0,0.43091593]
[1733009229237,0.011729,96452.0,96451.0,0.43091593]
[1733009232018,0.008729,96452.0,96451.0,0.43091593]
[1733009232232,0.011729,96452.0,96451.0,0.43091593]
[1733009232461,0.004729,96452.0,96451.0,0.43091593]
[1733009232723,0.010729,96452.0,96451.0,0.43091593]
[1733009233562,0.007729,96452.0,96451.0,0.43091593]
[1733009233778,0.001729,96452.0,96451.0,0.43091593]
[1733009233999,0.003729,96452.0,96451.0,0.43091593]
[1733009234227,0.009729,96452.0,96451.0,0.43091593]
[1733009234434,0.001729,96452.0,96451.0,0.43091593]
[1733009234664,0.002729,96452.0,96451.0,0.43091593]
[1733009235016,0.005729,96452.0,96451.0,0.43091593]
[1733009235684,0.005729,96452.0,96451.0,0.42791446]
[1733009235900,0.005729,96452.0,96451.0,0.43062399]
[1733009246611,0.10857421,96452.0,96451.0,0.42996727]
[1733009250112,0.10857421,96452.0,96451.0,0.30436727]
[1733009255823,0.10757421,96452.0,96451.0,0.30436727]
[1733009256080,0.11057421,96452.0,96451.0,0.30436727]
[1733009256791,0.10757421,96452.0,96451.0,0.30436727]
[1733009257243,0.11357421,96452.0,96451.0,0.30436727]
[1733009263429,0.14453531,96452.0,96451.0,0.30436727]
[1733009264350,0.13976102,96452.0,96451.0,0.30436727]
[1733009264840,0.11357421,96452.0,96451.0,0.30436727]
[1733009268438,0.1245644,96452.0,96451.0,0.30436727]
[1733009269567,0.1245644,96452.0,96451.0,0.42796727]
[1733009270025,0.11357421,96452.0,96451.0,0.42796727]
[1733009288001,0.11357421,96452.0,96451.0,0.30436727]
[1733009292256,0.22757421,96452.0,96451.0,0.30436727]
[1733009292482,0.16187421,96452.0,96451.0,0.26238128]
[1733009293398,0.15287421,96452.0,96451.0,0.26238128]
[1733009293622,0.15887421,96452.0,96451.0,0.26238128]
[1733009293835,0.11957421,96452.0,96451.0,0.26238128]
[1733009297388,0.26957421,96452.0,96451.0,0.26238128]
[1733009298964,0.36229195,96452.0,96451.0,0.26238128]
[1733009299957,0.36228871,96452.0,96451.0,0.26238128]
[1733009300179,0.36228871,96452.0,96451.0,0.19830257]
[1733009300425,0.26957421,96452.0,96451.0,0.19559304]
[1733009301344,0.26957421,96452.0,96451.0,0.19818904]
[1733009302203,0.26957421,96452.0,96451.0,0.19452388]
[1733009304938,0.26957421,96452.0,96451.0,0.18194979]
[1733009305816,0.26947027,96452.0,96451.0,0.18194979]
[1733009313978,0.26947027,96452.0,96451.0,0.00425375]
[1733009319484,0.26947027,96452.0,96451.0,0.12895375]
[1733009319721,0.26947027,96452.0,96451.0,0.12635775]
[1733009333985,0.11947027,96452.0,96451.0,0.12635775]
[1733009334415,0.32682727,96452.0,96451.0,0.12890032]
[1733009358496,0.32682727,96452.0,96451.0,0.00420032]
[1733009358948,0.32682727,96452.0,96451.0,0.00165775]
[1733009365293,0.32682727,96452.0,96451.0,7.5e-07]
[1733009370381,0.33802654,96452.0,96451.0,7.5e-07]
[1733009371105,0.207359,96451.0,96448.0,0.00718734]
[1733009371347,0.46020821,96449.0,96448.0,0.00718734]
[1733009372912,0.46920821,96449.0,96448.0,0.00718734]
[1733009373146,0.47420821,96449.0,96448.0,0.00718734]
[1733009380148,0.47420821,96449.0,96448.0,0.13168734]
[1733009382260,0.47420821,96449.0,96448.0,0.13255124]
[1733009382473,0.47593601,96449.0,96448.0,0.13255124]
[1733009384692,0.47593601,96449.0,96448.0,0.00805124]
[1733009394801,0.48560233,96449.0,96448.0,0.00805124]
[1733009399740,0.51782809,96449.0,96448.0,0.00805124]
[1733009402036,0.50816177,96449.0,96448.0,0.00805124]
[1733009402256,0.51783168,96449.0,96448.0,0.00805124]
[1733009402935,0.51783174,96449.0,96448.0,0.00805124]
[1733009405292,0.26329459,96448.0,96445.0,1.4e-07]
[1733009405540,0.10284521,96446.0,96445.0,1.4e-07]
[1733009405796,0.11251518,96446.0,96445.0,1.4e-07]
[1733009406309,0.11251518,96446.0,96445.0,0.12880014]
[1733009406954,0.10284521,96446.0,96445.0,0.12880014]
[1733009407826,0.10884521,96446.0,96445.0,0.12880014]
[1733009408051,0.31621421,96446.0,96445.0,0.12880014]
[1733009408268,0.32521421,96446.0,96445.0,0.12880014]
[1733009408731,0.11784521,96446.0,96445.0,0.12880014]
[1733009411344,0.11184521,96446.0,96445.0,0.12880014]
[1733009411551,0.10284521,96446.0,96445.0,0.12880014]
[1733009411763,0.11184521,96446.0,96445.0,0.12880014]
[1733009411996,0.10284521,96446.0,96445.0,0.12880014]
[1733009412213,0.10784521,96446.0,96445.0,0.12880014]
[1733009412407,0.10784521,96446.0,96445.0,0.12945686]
[1733009412408,0.11384521,96446.0,96445.0,0.12945686]
[1733009413513,0.10884521,96446.0,96445.0,0.12945686]
[1733009413720,0.11184521,96446.0,96445.0,0.12945686]
[1733009414148,0.10884521,96446.0,96445.0,0.12945686]
[1733009414392,0.10284521,96446.0,96445.0,0.12945686]
[1733009414609,0.11184521,96446.0,96445.0,0.12945686]
[1733009415333,0.10584521,96446.0,96445.0,0.12945686]
[1733009415565,0.10584521,96446.0,96445.0,0.13186566]
[1733009415566,0.10284521,96446.0,96445.0,0.13186566]
[1733009415776,0.10684521,96446.0,96445.0,0.13186566]
[1733009416002,0.0017278,96449.0,96445.0,0.13186566]
[1733009416003,0.0017278,96449.0,96448.0,0.12155672]
[1733009416222,0.0017278,96449.0,96448.0,0.14639144]
[1733009416440,0.0017278,96449.0,96448.0,0.1487946]
[1733009417321,0.0022193,96452.0,96451.0,0.00065672]
[1733009417537,0.0022193,96452.0,96451.0,0.14639128]
[1733009417747,0.0022193,96452.0,96451.0,0.1487811]
[1733009420588,0.0022193,96452.0,96451.0,0.1257811]
[1733009421680,0.0022193,96452.0,96451.0,0.12394654]
[1733009422148,0.10506451,96452.0,96451.0,0.12394654]
[1733009422361,0.10506451,96452.0,96451.0,0.12328982]
[1733009422796,0.10606451,96452.0,96451.0,0.12328982]
[1733009423240,0.10506451,96452.0,96451.0,0.12328982]
[1733009423777,0.0022193,96452.0,96451.0,0.12394654]
[1733009424629,0.0062193,96452.0,96451.0,0.12394654]
[1733009425094,0.0132193,96452.0,96451.0,0.12394654]
[1733009425309,0.0022193,96452.0,96451.0,0.12394654]
[1733009425736,0.0062193,96452.0,96451.0,0.12394654]
[1733009426655,0.0082193,96452.0,96451.0,0.12394654]
[1733009426889,0.0082193,96452.0,96451.0,0.12328982]
[1733009427341,0.0082193,96452.0,96451.0,0.12394654]
[1733009427774,0.0062193,96452.0,96451.0,0.12394654]
[1733009427982,0.0052193,96452.0,96451.0,0.12394654]
[1733009428220,0.0052193,96452.0,96451.0,0.12328982]
[1733009428437,0.0112193,96452.0,96451.0,0.12394654]
[1733009430832,0.0112193,96452.0,96451.0,0.12155672]
[1733009431034,0.0082193,96452.0,96451.0,0.12155672]
[1733009431321,0.0052193,96452.0,96451.0,0.12394151]
[1733009431526,0.0112193,96452.0,96451.0,0.12394151]
[1733009431945,0.0112193,96452.0,96451.0,0.12155672]
[1733009432368,0.0112193,96452.0,96451.0,0.12394151]
[1733009434475,0.0112193,96452.0,96451.0,0.14694151]
[1733009438703,0.0052193,96452.0,96451.0,0.14694151]
[1733009439150,0.0112193,96452.0,96451.0,0.14694151]
[1733009439776,0.0082193,96452.0,96451.0,0.14694151]
[1733009439987,0.0022193,96452.0,96451.0,0.14694151]
[1733009440207,0.0072193,96452.0,96451.0,0.14694151]
[1733009440626,0.0022193,96452.0,96451.0,0.14694151]
[1733009444861,0.0022193,96452.0,96451.0,0.12394151]
[1733009447086,0.0052193,96452.0,96451.0,0.12394151]
[1733009447445,0.0052193,96452.0,96451.0,0.12155672]
[1733009447647,0.0052193,96452.0,96451.0,0.12394047]
[1733009454287,0.0052193,96452.0,96451.0,0.12577533]
[1733009454573,0.0052193,96452.0,96451.0,0.14877533]
[1733009455246,0.0032193,96452.0,96451.0,0.14877533]
[1733009455896,0.0022193,96452.0,96451.0,0.14877533]
[1733009471110,0.0022193,96452.0,96451.0,0.14877515]
[1733009471327,0.0022193,96452.0,96451.0,0.12394047]
[1733009471557,0.0022193,96452.0,96451.0,0.00304047]
[1733009471982,0.0022193,96452.0,96451.0,0.00065672]
[1733009472196,0.0022193,96452.0,96451.0,0.00293476]
[1733009472432,0.0022193,96452.0,96451.0,0.00065672]
[1733009472652,0.0042193,96452.0,96451.0,0.00293711]
[1733009472925,0.0082193,96452.0,96451.0,0.00065672]
[1733009473208,0.0062193,96452.0,96451.0,0.00065672]
[1733009473437,0.0062193,96452.0,96451.0,0.04685672]
[1733009473438,0.0082193,96452.0,96451.0,0.04685672]
[1733009473698,0.0082193,96452.0,96451.0,0.155072]
[1733009474131,0.0042193,96452.0,96451.0,0.155072]
[1733009474609,0.0022193,96452.0,96451.0,0.155072]
[1733009475086,0.0042193,96452.0,96451.0,0.155072]
[1733009475809,0.0022193,96452.0,96451.0,0.155072]
[1733009482486,0.0022193,96452.0,96451.0,0.16604235]
[1733009488175,0.0022193,96452.0,96451.0,0.43888756]
[1733009488411,0.0022193,96452.0,96451.0,0.43705267]
[1733009489386,0.0022193,96452.0,96451.0,0.84982931]
[1733009490263,0.0022193,96452.0,96451.0,0.43805267]
[1733009490499,0.0032193,96452.0,96451.0,0.43805267]
[1733009490982,0.0032193,96452.0,96451.0,0.43705267]
[1733009491172,0.0042193,96452.0,96451.0,0.43805267]
[1733009495140,0.0455,96495.0,96491.0,0.00065672]
[1733009495389,0.10284521,96494.0,96491.0,0.00065672]
[1733009496084,0.10284521,96494.0,96493.0,0.00065672]
[1733009496516,0.10284521,96494.0,96493.0,0.00071632]
[1733009496731,0.10984521,96494.0,96493.0,0.00071632]
[1733009497435,0.10284521,96494.0,96493.0,0.00071632]
[1733009497652,0.10684521,96494.0,96493.0,0.00071632]
[1733009497871,0.11384521,96494.0,96493.0,0.00071632]
[1733009500377,0.11384521,96494.0,96493.0,5.96e-05]
[1733009500617,0.22904521,96494.0,96493.0,5.96e-05]
[1733009500841,0.26815972,96494.0,96493.0,5.96e-05]
[1733009501061,0.29434653,96494.0,96493.0,5.96e-05]
[1733009501496,0.26415972,96494.0,96493.0,5.96e-05]
[1733009501962,0.26415972,96494.0,96493.0,6e-07]
[1733009501963,0.44028084,96494.0,96493.0,6e-07]
[1733009502186,0.47939535,96494.0,96493.0,6e-07]
[1733009502411,0.47239535,96494.0,96493.0,6e-07]
[1733009502636,0.48139535,96494.0,96493.0,6e-07]
[1733009503068,0.48139535,96494.0,96464.0,0.00065672]
[1733009503069,0.1139,96479.0,96464.0,0.00065672]
[1733009503310,0.207319,96470.0,96464.0,0.00065672]
[1733009503523,0.10284521,96469.0,96464.0,0.00065672]
[1733009504639,0.10284521,96469.0,96465.0,0.00065672]
[1733009505073,0.10384521,96469.0,96464.0,0.00065672]
[1733009505528,0.10384521,96469.0,96465.0,0.00065672]
[1733009505759,0.10384521,96469.0,96464.0,0.00165672]
[1733009505970,0.10384521,96469.0,96453.0,0.0762]
[1733009505971,0.10384521,96469.0,96465.0,0.00065672]
[1733009506194,0.10884521,96469.0,96464.0,0.00165672]
[1733009506402,0.10484521,96469.0,96464.0,0.00065672]
[1733009506871,0.11084521,96469.0,96465.0,0.001]
[1733009507085,0.10884521,96469.0,96464.0,0.00065672]
[1733009507302,0.10884521,96469.0,96468.0,0.00065672]
[1733009507519,0.11684521,96469.0,96468.0,0.00065672]
[1733009508590,0.10484521,96469.0,96468.0,0.00065672]
[1733009509014,0.11084521,96469.0,96468.0,0.00165672]
[1733009509247,0.10884521,96469.0,96468.0,0.00165672]
[1733009509506,0.11084521,96469.0,96468.0,0.00165672]
[1733009512864,0.11084521,96469.0,96468.0,0.00389801]
[1733009514400,0.11084521,96469.0,96468.0,0.00165672]
[1733009514744,0.008,96469.0,96468.0,0.00165672]
[1733009515056,0.008,96469.0,96468.0,0.00389801]